bitfinex/quotes_SOLUSD_20260102
["timestamp","ask_amount","ask_price","bid_price","bid_amount"]
[1767312002697,0.77194067,127.02,126.94,16.07573603]
[1767312003503,0.77194067,127.02,126.95,23.63786786]
[1767312004323,0.1,127.02,126.95,23.63786786]
[1767312004519,0.1,127.02,126.96,7.62420927]
[1767312005219,0.1,127.02,126.97,3.15121912]
[1767312005431,0.67194067,127.01,126.95,0.07]
[1767312005602,0.67194067,127.01,126.96,0.07]
[1767312005921,0.67194067,127.01,126.96,11.09846059]
[1767312006701,0.1,127.02,126.96,30.78970192]
[1767312009324,0.1,127.02,126.96,91.98970192]
[1767312011122,0.1,127.06,126.97,30.16758761]
[1767312011123,0.67194067,127.05,126.97,30.16758761]
[1767312011302,0.67194067,127.05,126.97,91.43758761]
[1767312011503,0.24183378,127.05,126.98,0.43010689]
[1767312012422,0.24183378,127.05,126.98,14.38]
[1767312012605,0.24183378,127.05,126.99,0.43010689]
[1767312013003,0.24183378,127.05,127.0,8.30412263]
[1767312013325,0.24183378,127.05,127.01,0.43010689]
[1767312013629,0.77194067,127.06,127.01,0.43010689]
[1767312013925,0.77194067,127.06,127.01,3.58058143]
[1767312014426,0.77194067,127.06,127.02,0.43010689]
[1767312015122,0.70894358,127.06,127.03,7.87215618]
[1767312015724,0.70894358,127.06,127.04,0.43010689]
[1767312015725,0.03700291,127.06,127.04,0.43010689]
[1767312016000,0.70894358,127.06,127.02,14.38]
[1767312017899,0.70894358,127.06,127.01,8.30290748]
[1767312018712,0.70894358,127.06,127.0,7.87351911]
[1767312019119,0.67194067,127.05,126.98,69.07509052]
[1767312019416,0.67194067,127.05,126.97,14.38]
[1767312019615,0.67194067,127.05,126.96,0.43010689]
[1767312019817,0.67194067,127.05,126.96,8.30617708]
[1767312020132,0.67194067,127.05,126.96,0.43010689]
[1767312020328,0.67194067,127.05,126.97,8.30580115]
[1767312020711,0.67194067,127.04,126.98,0.43010689]
[1767312020912,0.67194067,127.04,127.0,0.43010689]
[1767312023020,0.67194067,127.04,127.0,8.30404507]
[1767312024924,0.67194067,127.04,127.0,7.87393818]
[1767312025123,0.67194067,127.04,126.97,8.30551675]
[1767312025836,0.67194067,127.04,126.97,7.87540986]
[1767312026018,0.67194067,127.04,126.98,7.87500439]
[1767312026425,0.67194067,127.04,126.98,8.30511128]
[1767312029427,7.90750368,127.06,126.98,8.30511128]
[1767312029428,0.66517166,127.05,126.99,0.43010689]
[1767312029633,0.66517166,127.05,127.01,0.43010689]
[1767312030439,0.66517166,127.05,127.0,14.38]
[1767312031641,0.66517166,127.05,127.0,22.25385369]
[1767312032138,0.66517166,127.05,127.0,14.38]
[1767312032847,0.66517166,127.05,127.0,22.68390382]
[1767312033942,0.66517166,127.05,127.0,22.25379693]
[1767312034146,0.70217457,127.06,127.01,0.43010689]
[1767312035544,0.03700291,127.06,127.01,0.43010689]
[1767312035919,0.03700291,127.06,127.03,0.43010689]
[1767312036120,0.03700291,127.06,127.03,8.30218224]
[1767312036532,0.03700291,127.06,127.03,7.87207535]
[1767312036735,0.1,127.07,127.04,0.43010689]
[1767312036930,0.76517166,127.07,127.03,7.87207535]
[1767312040845,0.76517166,127.07,127.03,8.26517933]
[1767312041545,0.76517166,127.07,127.04,0.39310398]
[1767312044242,0.1,127.07,127.04,8.26431453]
[1767312045127,0.76517166,127.07,127.04,8.26431453]
[1767312045851,0.1,127.07,127.04,8.26431453]
[1767312048949,0.76517166,127.11,127.04,0.19310398]
[1767312049457,0.76517166,127.11,127.05,0.19310398]
[1767312051032,0.76517166,127.11,127.05,8.06371311]
[1767312052954,0.76517166,127.11,127.05,7.87060913]
[1767312053332,0.76517166,127.11,127.05,8.06371311]
[1767312058956,0.68446618,127.1,127.05,8.06371311]
[1767312062170,0.68446618,127.09,127.05,8.06371311]
[1767312062474,0.68446618,127.09,127.06,2.05797188]
[1767312063366,0.68446618,127.09,127.06,2.25107586]
[1767312068382,0.68446618,127.09,127.05,7.87060913]
[1767312068670,0.68446618,127.08,127.04,22.4443826]
[1767312069070,0.68446618,127.08,127.06,2.05797188]
[1767312069278,0.68446618,127.1,127.07,2.25107586]
[1767312069480,0.68446618,127.1,127.07,2.05797188]
[1767312071873,0.1,127.11,127.09,2.05797188]
[1767312072454,0.78446618,127.11,127.09,2.05797188]
[1767312074877,0.78446618,127.11,127.09,9.9263917]
[1767312076158,0.78446618,127.11,127.1,2.25107586]
[1767312076159,1e-08,127.11,127.1,2.25107586]
[1767312078579,1e-08,127.11,127.1,10.11889647]
[1767312080094,1e-08,127.12,127.1,10.11889647]
[1767312080254,1e-08,127.12,127.11,2.05797188]
[1767312080598,0.1,127.14,127.11,2.7452662]
[1767312082381,0.78446618,127.14,127.11,2.7452662]
[1767312083760,0.78446618,127.14,127.11,0.68729432]
[1767312084082,0.78446618,127.14,127.11,2.7452662]
[1767312089270,0.78446618,127.14,127.11,0.68729432]
[1767312089470,0.78446618,127.14,127.11,2.7452662]
[1767312090581,0.78446618,127.14,127.11,0.68729432]
[1767312092260,0.78446618,127.14,127.11,3.900563]
[1767312093383,0.1,127.14,127.12,3.89169149]
[1767312093581,0.1,127.14,127.13,3.21326868]
[1767312093890,0.1,127.15,127.13,3.89169149]
[1767312094072,0.1,127.15,127.14,0.67842281]
[1767312094263,0.1,127.15,127.13,3.89169149]
[1767312094885,0.1,127.15,127.13,0.67842281]
[1767312095189,0.1,127.15,127.13,3.89169149]
[1767312096682,0.1,127.17,127.14,3.89083883]
[1767312096887,0.1,127.17,127.15,3.21326868]
[1767312097191,0.77185845,127.17,127.15,3.21326868]
[1767312097888,0.77185845,127.17,127.14,3.89083883]
[1767312099485,0.1,127.17,127.15,0.67757015]
[1767312099788,0.77185845,127.17,127.15,0.67757015]
[1767312100094,0.77185845,127.17,127.14,3.89083883]
[1767312103267,0.77185845,127.17,127.15,3.21326868]
[1767312104098,0.77185845,127.17,127.14,0.67757015]
[1767312104296,0.77185845,127.17,127.15,3.21326868]
[1767312104495,0.77185845,127.17,127.14,3.89083883]
[1767312105076,3.21326868,127.16,127.12,3.21326868]
[1767312105290,0.67185845,127.15,127.12,3.21326868]
[1767312109502,0.1,127.17,127.15,0.67757015]
[1767312109689,0.1,127.17,127.16,3.21326868]
[1767312109883,0.77185845,127.17,127.16,3.21326868]
[1767312110899,0.77185845,127.17,127.15,3.21326868]
[1767312111100,0.77185845,127.17,127.14,0.67757015]
[1767312111101,0.77185845,127.17,127.14,3.89083883]
[1767312112502,3.21326868,127.16,127.12,14.36]
[1767312112701,3.21326868,127.16,127.11,3.21326868]
[1767312112702,0.67185845,127.14,127.11,3.21326868]
[1767312112898,0.67185845,127.14,127.12,3.21326868]
[1767312113095,0.67185845,127.16,127.13,3.21326868]
[1767312113309,0.67185845,127.16,127.14,3.21326868]
[1767312113525,0.67185845,127.16,127.13,3.89083883]
[1767312114799,0.67185845,127.16,127.12,3.89083883]
[1767312115109,0.67185845,127.16,127.12,11.75742023]
[1767312115807,0.81503028,127.17,127.14,0.67757015]
[1767312116006,0.71503028,127.15,127.11,11.75780132]
[1767312116505,0.71503028,127.15,127.12,3.21326868]
[1767312116799,0.71503028,127.15,127.11,11.75780132]
[1767312117181,0.71503028,127.15,127.12,0.67757015]
[1767312118797,0.71503028,127.15,127.12,3.89083883]
[1767312123420,0.71503028,127.16,127.13,3.89083883]
[1767312123722,0.81503028,127.17,127.14,0.67757015]
[1767312123944,0.1,127.17,127.15,3.89083883]
[1767312124616,0.81503028,127.17,127.13,3.21326868]
[1767312124820,0.81503028,127.17,127.13,14.36]
[1767312125224,0.81503028,127.17,127.12,26.11697954]
[1767312125418,0.81503028,127.17,127.12,25.43940939]
[1767312125629,0.81503028,127.17,127.13,0.67757015]
[1767312126425,0.71503028,127.16,127.12,14.36]
[1767312126635,0.71503028,127.16,127.12,17.57326868]
[1767312126810,0.71503028,127.16,127.12,18.25083883]
[1767312129834,0.71503028,127.16,127.13,0.67757015]
[1767312132443,0.71503028,127.16,127.12,18.25083883]
[1767312134139,0.71503028,127.16,127.12,26.11740637]
[1767312138148,0.71503028,127.16,127.13,0.67757015]
[1767312139632,0.71503028,127.16,127.12,25.43983622]
[1767312140160,0.71503028,127.16,127.13,8.54351362]
[1767312140354,0.71503028,127.16,127.13,3.89083883]
[1767312141656,0.71503028,127.15,127.11,0.67757015]
[1767312141835,0.71503028,127.15,127.11,3.89083883]
[1767312142547,0.71503028,127.15,127.11,11.75755242]
[1767312146954,0.71503028,127.15,127.11,8.54428374]
[1767312147258,0.69144404,127.14,127.11,3.21326868]
[1767312147459,0.69144404,127.14,127.11,3.89083883]
[1767312147761,0.69144404,127.14,127.11,0.67757015]
[1767312147957,0.69144404,127.14,127.11,3.89083883]
[1767312149566,0.69144404,127.14,127.11,0.67757015]
[1767312149748,0.69144404,127.14,127.11,3.89083883]
[1767312152565,0.69144404,127.14,127.11,2.73385388]
[1767312153064,0.69144404,127.14,127.11,0.67757015]
[1767312153242,0.69144404,127.14,127.11,2.73385388]
[1767312153565,0.69144404,127.14,127.1,24.96156265]
[1767312154759,0.69144404,127.15,127.11,10.60103622]
[1767312155562,0.69144404,127.15,127.11,8.54475249]
[1767312155764,0.69144404,127.15,127.11,10.60103622]
[1767312156665,0.69144404,127.15,127.11,2.05628373]
[1767312158472,0.69144404,127.12,127.09,0.67757015]
[1767312158772,0.69144404,127.09,127.05,2.73385388]
[1767312159072,0.69144404,127.09,127.06,0.67757015]
[1767312159739,0.69144404,127.09,127.06,2.73385388]
[1767312159941,0.69144404,127.09,127.06,0.67757015]
[1767312164059,2.74772777,127.09,127.06,0.67757015]
[1767312164465,0.69144404,127.08,127.05,0.67757015]
[1767312165876,0.69144404,127.08,127.05,2.73385388]
[1767312167778,0.69144404,127.09,127.06,0.67757015]
[1767312169658,0.69144404,127.09,127.05,2.73385388]
[1767312170264,0.69144404,127.09,127.05,2.05628373]
[1767312170463,0.69144404,127.09,127.06,0.67757015]
[1767312170975,2.05628373,127.09,127.05,0.67757015]
[1767312171277,0.69144404,127.08,127.05,0.67757015]
[1767312173567,0.72236434,127.07,127.04,0.67757015]
[1767312174576,0.72236434,127.07,127.04,2.73385388]
[1767312175565,0.72236434,127.07,127.03,7.87177558]
[1767312175566,0.72236434,127.05,127.0,7.87390131]
[1767312175780,0.72236434,127.05,127.01,2.73385388]
[1767312176085,2.77864807,127.05,127.01,0.67757015]
[1767312176669,0.72236434,127.04,127.01,0.67757015]
[1767312177278,0.72236434,127.04,127.01,2.73385388]
[1767312180284,0.72236434,127.04,127.01,0.67757015]
[1767312181089,0.72236434,127.04,127.01,2.73385388]
[1767312181590,7.86859045,127.09,127.04,0.68142191]
[1767312181775,2.05628373,127.09,127.04,2.73770564]
[1767312182392,119.18,127.13,127.03,14.38]
[1767312182393,7.86658275,127.12,127.05,2.73770564]
[1767312182567,2.05628373,127.11,127.06,2.05628373]
[1767312182770,2.05628373,127.1,127.06,2.05628373]
[1767312182966,2.05628373,127.09,127.05,17.11770564]
[1767312183171,2.05628373,127.08,127.05,15.06142191]
[1767312183582,0.72236434,127.08,127.05,15.06142191]
[1767312184292,0.72236434,127.08,127.05,0.68142191]
[1767312185217,0.72236434,127.07,127.04,2.73770564]
[1767312188795,0.72236434,127.07,127.05,0.68142191]
[1767312191103,0.72236434,127.07,127.03,15.06142191]
[1767312191400,0.72236434,127.07,127.03,17.11770564]
[1767312191584,0.72236434,127.06,127.03,15.06142191]
[1767312191898,0.72236434,127.06,127.03,0.68142191]
[1767312192500,2.77864807,127.06,127.03,0.68142191]
[1767312193081,0.72236434,127.05,127.02,2.05628373]
[1767312193408,0.72236434,127.05,127.02,2.73770564]
[1767312198507,2.77864807,127.05,127.02,0.68142191]
[1767312198804,0.72236434,127.05,127.02,0.68142191]
[1767312202813,2.05628373,127.06,126.99,81.08586616]
[1767312202814,0.72236434,127.02,126.99,0.88142191]
[1767312210527,0.72236434,127.02,126.99,2.93770564]
[1767312210999,0.72236434,127.02,126.99,0.88142191]
[1767312212411,2.77864807,127.02,126.99,0.88142191]
[1767312212813,0.72236434,127.02,126.99,0.88142191]
[1767312214434,0.68212134,127.01,126.99,0.2]
[1767312215721,3.90224309,127.01,126.98,0.2]
[1767312215922,0.68212134,127.0,126.98,0.2]
[1767312222630,3.90224309,127.0,126.96,3.93674566]
[1767312223346,3.22012175,127.0,126.96,3.93674566]
[1767312223653,3.90224309,127.0,126.96,3.93674566]
[1767312223814,0.68212134,126.99,126.96,3.93674566]
[1767312224541,0.68212134,126.99,126.96,0.71662391]
[1767312225047,7.87401004,127.01,126.93,69.07819497]
[1767312225342,0.68212134,126.96,126.93,0.71662391]
[1767312225547,3.90224309,126.96,126.93,0.71662391]
[1767312226549,3.90224309,126.95,126.91,15.09662391]
[1767312226728,3.22012175,126.94,126.91,14.38]
[1767312226928,3.90224309,126.93,126.9,0.91662391]
[1767312227723,3.90224309,126.92,126.9,0.2]
[1767312229143,3.22012175,126.96,126.9,0.2]
[1767312229351,6.6336788,127.08,126.96,0.71662391]
[1767312229523,0.68212134,127.06,126.98,0.71662391]
[1767312229843,27.54387345,127.07,126.99,14.38]
[1767312229844,3.90224309,127.02,126.99,14.38]
[1767312230044,3.22012175,127.01,126.99,13.86205583]
[1767312230258,50.27401182,127.07,126.93,8.35013837]
[1767312230259,0.58212134,126.99,126.96,14.38]
[1767312230426,3.22012175,126.98,126.96,14.38]
[1767312230621,3.80224309,126.99,126.96,14.38]
[1767312230836,3.80224309,126.99,126.95,15.09662391]
[1767312231328,3.22012175,126.98,126.95,15.09662391]
[1767312231534,3.22012175,126.97,126.95,14.38]
[1767312232318,3.80224309,126.97,126.95,14.38]
[1767312232741,0.58212134,126.99,126.95,18.31674566]
[1767312233132,7.86967813,127.07,126.99,0.71662391]
[1767312233337,3.80224309,127.06,127.01,3.93674566]
[1767312233524,3.22012175,127.06,127.01,3.93674566]
[1767312233722,0.58212134,127.05,127.02,14.38]
[1767312234045,0.58212134,127.05,127.02,17.60012175]
[1767312234248,7.86967813,127.07,127.02,17.60012175]
[1767312234249,3.22012175,127.07,127.02,17.60012175]
[1767312234545,19.67194403,127.09,127.02,17.60012175]
[1767312234546,11.67088957,127.09,127.05,3.22012175]
[1767312234846,11.67088957,127.09,127.05,17.60012175]
[1767312234847,11.08876823,127.09,127.05,17.60012175]
[1767312235038,0.58212134,127.08,127.05,17.60012175]
[1767312235349,0.58212134,127.08,127.05,14.38]
[1767312235544,0.58212134,127.08,127.05,14.34995038]
[1767312236453,0.58212134,127.08,127.05,14.32080661]
[1767312236661,0.58212134,127.08,127.05,17.54092836]
[1767312236836,11.67088957,127.09,127.05,17.54092836]
[1767312237032,0.58212134,127.08,127.05,17.54092836]
[1767312237436,0.58212134,127.08,127.05,14.32080661]
[1767312238147,11.67144928,127.08,127.05,14.32080661]
[1767312238338,11.67144928,127.08,127.05,14.29017183]
[1767312238951,11.67144928,127.08,127.05,14.26094644]
[1767312239156,11.67144928,127.08,127.04,0.68816798]
[1767312239330,11.67144928,127.08,127.05,14.38]
[1767312240050,11.67144928,127.08,127.04,18.28828973]
[1767312240276,8.45132753,127.08,127.04,18.28828973]
[1767312240436,11.67144928,127.08,127.04,18.28828973]
[1767312241234,3.22012175,127.06,127.04,13.79787866]
[1767312241444,3.22012175,127.07,127.04,13.79787866]
[1767312242055,3.22012175,127.07,127.03,14.38]
[1767312242442,7.86920619,127.08,127.03,17.60012175]
[1767312242643,3.22012175,127.07,127.03,17.60012175]
[1767312242951,7.86920619,127.08,127.03,18.28828973]
[1767312243131,3.22012175,127.07,127.03,18.28828973]
[1767312244755,7.86920619,127.08,127.03,18.28828973]
[1767312245055,11.08856143,127.09,127.04,3.90828973]
[1767312245277,11.08856143,127.09,127.04,0.68816798]
[1767312245441,3.22012175,127.08,127.04,0.68816798]
[1767312247065,11.08918733,127.08,127.04,0.68816798]
[1767312247558,3.22012175,127.08,127.04,0.68816798]
[1767312247775,7.86545068,127.14,127.08,0.68816798]
[1767312247946,4.11102929,127.15,127.04,7.87130435]
[1767312247947,7.33115104,127.15,127.1,3.22012175]
[1767312248261,3.22012175,127.15,127.11,0.68816798]
[1767312248562,11.08443787,127.16,127.11,0.68816798]
[1767312248742,7.86431612,127.16,127.11,3.90828973]
[1767312248941,11.08443787,127.16,127.11,3.90828973]
[1767312249141,7.86431612,127.16,127.11,3.90828973]
[1767312249342,3.22012175,127.16,127.11,3.90828973]
[1767312249536,0.1,127.19,127.16,0.68816798]
[1767312249849,0.1,127.19,127.18,0.68816798]
[1767312251138,0.1,127.19,127.18,15.06816798]
[1767312251335,0.1,127.19,127.18,0.68816798]
[1767312251563,0.1,127.19,127.18,15.06816798]
[1767312252548,0.1,127.19,127.12,0.68816798]
[1767312252749,3.32012175,127.19,127.15,3.22012175]
[1767312253165,0.1,127.19,127.16,3.22012175]
[1767312253472,0.1,127.19,127.18,3.22012175]
[1767312253969,3.32012175,127.19,127.14,17.60012175]
[1767312254269,3.32012175,127.19,127.14,15.06816798]
[1767312254572,0.68816797,127.14,127.1,3.22012175]
[1767312254755,0.68816797,127.14,127.11,3.22012175]
[1767312255070,0.68816797,127.14,127.1,17.60012175]
[1767312255574,3.90828972,127.14,127.1,17.60012175]
[1767312256477,9.64148443,127.14,127.1,15.06816798]
[1767312256878,8.55247231,127.16,127.11,0.68816798]
[1767312257080,8.95331646,127.14,127.11,0.68816798]
[1767312257875,8.95331646,127.15,127.11,0.68816798]
[1767312258280,8.95331646,127.15,127.12,15.06816798]
[1767312258851,8.95331646,127.13,127.12,14.28]
[1767312259057,16.81928043,127.13,127.07,0.68816798]
[1767312259267,8.95331646,127.1,127.07,0.68816798]
[1767312259880,27.5308739,127.13,127.04,14.38]
[1767312260179,8.95331646,127.1,127.05,0.68816798]
[1767312260369,27.5308739,127.13,127.05,0.68816798]
[1767312260570,8.95331646,127.1,127.06,0.68816798]
[1767312260963,8.95331646,127.11,127.06,0.68816798]
[1767312261278,8.95331646,127.13,127.09,0.68816798]
[1767312261878,16.81868491,127.14,127.09,0.68816798]
[1767312262184,7.86536845,127.14,127.09,9.64148444]
[1767312262384,7.86536845,127.14,127.1,0.68816798]
[1767312262887,16.81868491,127.14,127.1,0.68816798]
[1767312263181,7.86536845,127.14,127.06,0.68816798]
[1767312263384,27.52873167,127.14,127.06,0.68816798]
[1767312263560,27.52873167,127.14,127.06,8.95331646]
[1767312263759,27.52873167,127.14,127.09,0.69264242]
[1767312264176,8.95331646,127.13,127.09,0.69264242]
[1767312264377,27.52873167,127.14,127.09,0.69264242]
[1767312264570,8.95331646,127.13,127.09,0.69264242]
[1767312264977,8.95331646,127.1,127.05,8.95331646]
[1767312265171,16.82122742,127.1,127.04,14.38]
[1767312265466,27.53746249,127.1,127.05,0.69264242]
[1767312265664,8.95331646,127.09,127.05,0.69264242]
[1767312265873,8.95331646,127.08,127.05,0.69264242]
[1767312266077,8.95331646,127.09,127.05,0.69264242]
[1767312266880,8.95331646,127.08,127.05,0.69264242]
[1767312268187,7.86882181,127.09,127.05,0.69264242]
[1767312268377,8.95331646,127.08,127.05,0.69264242]
[1767312268573,8.95331646,127.07,127.05,0.69264242]
[1767312268768,8.95331646,127.08,127.05,0.69264242]
[1767312269785,7.8647267,127.15,127.08,0.69264242]
[1767312270003,8.95331646,127.13,127.09,0.69264242]
[1767312270176,8.95331646,127.13,127.09,9.64595888]
[1767312270494,8.95331646,127.13,127.09,0.69264242]
[1767312270807,8.95331646,127.12,127.09,0.69264242]
[1767312270979,16.81965545,127.13,127.09,9.64595888]
[1767312271490,16.81965545,127.13,127.09,0.69264242]
[1767312272470,16.81965545,127.13,127.09,9.64595888]
[1767312272678,16.81965545,127.13,127.06,22.25021665]
[1767312272679,16.81965545,127.13,127.08,9.64595888]
[1767312273309,16.81965545,127.13,127.08,0.69264242]
[1767312273598,8.95331646,127.12,127.08,9.64595888]
[1767312273804,8.95331646,127.12,127.08,0.69264242]
[1767312274013,7.86633899,127.13,127.08,0.69264242]
[1767312274175,8.95331646,127.12,127.08,0.69264242]
[1767312274694,7.86720163,127.11,127.08,9.64595888]
[1767312274895,7.86720163,127.11,127.08,0.69264242]
[1767312275469,16.82051809,127.11,127.06,24.02595888]
[1767312276119,16.82051809,127.11,127.06,23.33331646]
[1767312276277,16.82051809,127.11,127.07,0.69264242]
[1767312276597,7.86658275,127.12,127.07,6.20537566]
[1767312276797,13.37931599,127.12,127.07,6.20537566]
[1767312276998,7.86658275,127.12,127.07,0.69264242]
[1767312277206,7.86658275,127.12,127.08,6.20537566]
[1767312277502,13.37931599,127.12,127.08,6.20537566]
[1767312277998,13.37931599,127.12,127.08,0.69264242]
[1767312279511,7.86658275,127.12,127.08,0.69264242]
[1767312279680,13.37931599,127.12,127.08,0.69264242]
[1767312282598,9.92418767,127.12,127.08,0.69264242]
[1767312283603,7.86658275,127.12,127.08,0.69264242]
[1767312284705,7.86658275,127.12,127.07,0.69264242]
[1767312285006,9.92418767,127.12,127.07,2.75024734]
[1767312285711,9.92418767,127.12,127.08,0.69264242]
[1767312287209,2.05760492,127.11,127.08,0.69264242]
[1767312288084,2.05760492,127.11,127.07,2.05760492]
[1767312288292,9.92518698,127.11,127.07,2.75024734]
[1767312288490,7.86758206,127.11,127.07,2.75024734]
[1767312288787,9.92518698,127.11,127.07,2.75024734]
[1767312289708,9.92518698,127.11,127.07,0.69264242]
[1767312290012,9.92518698,127.11,127.07,2.75024734]
[1767312290356,9.92518698,127.11,127.08,0.69264242]
[1767312290685,9.92518698,127.11,127.04,7.87146087]
[1767312290890,9.92518698,127.11,127.07,2.75024734]
[1767312291391,7.86758206,127.11,127.08,0.69264242]
[1767312292094,2.05760492,127.1,127.08,0.69264242]
[1767312292421,9.92518698,127.11,127.08,0.69264242]
[1767312292716,7.86758206,127.11,127.08,0.69264242]
[1767312293012,9.92518698,127.11,127.08,0.69264242]
[1767312293194,9.92518698,127.11,127.07,2.75024734]
[1767312294206,9.92518698,127.11,127.08,0.6709938]
[1767312295630,2.05760492,127.1,127.03,14.38]
[1767312295791,2.05760492,127.08,127.04,2.05760492]
[1767312296113,2.05760492,127.08,127.05,0.6709938]
[1767312297318,9.92627427,127.09,127.05,0.6709938]
[1767312297525,2.05760492,127.08,127.05,0.6709938]
[1767312298015,9.92627427,127.09,127.05,2.72859872]
[1767312298215,7.86866935,127.09,127.06,2.72859872]
[1767312298413,9.92627427,127.09,127.06,0.6709938]
[1767312299602,2.05760492,127.08,127.04,0.6709938]
[1767312300521,22.24866935,127.09,127.04,0.6709938]
[1767312300732,2.05760492,127.08,127.04,0.6709938]
[1767312301220,2.05760492,127.06,127.04,0.6709938]
[1767312301729,2.05760492,127.07,127.04,0.6709938]
[1767312302425,9.92744179,127.07,127.04,0.6709938]
[1767312304031,2.05760492,127.07,127.04,0.6709938]
[1767312304927,9.92666378,127.08,127.04,0.6709938]
[1767312305127,34.05109922,127.09,127.05,2.72859872]
[1767312305128,24.30623957,127.09,127.05,2.72859872]
[1767312305445,9.92623957,127.09,127.06,0.6709938]
[1767312305728,7.86863465,127.09,127.06,0.6709938]
[1767312306016,9.92623957,127.09,127.06,0.6709938]
[1767312306223,2.05760492,127.09,127.06,0.6709938]
[1767312308731,7.86808303,127.1,127.06,0.6709938]
[1767312308930,2.05760492,127.09,127.06,0.6709938]
[1767312309722,7.86808303,127.1,127.06,0.6709938]
[1767312309907,2.05760492,127.09,127.06,0.6709938]
[1767312310724,2.05760492,127.07,127.04,0.6709938]
[1767312311020,2.05760492,127.08,127.04,0.6709938]
[1767312312526,2.05760492,127.07,127.04,0.6709938]
[1767312316024,2.05760492,127.06,127.04,0.6709938]
[1767312318536,2.05760492,127.06,127.03,0.6709938]
[1767312318743,2.72557272,127.04,126.98,61.2]
[1767312318911,2.05760492,127.02,126.97,7.87545987]
[1767312319110,2.05760492,127.02,126.97,9.93306479]
[1767312319337,2.05760492,127.03,126.98,9.93270205]
[1767312320515,2.05760492,127.07,127.02,2.05760492]
[1767312320832,2.05760492,127.09,127.04,0.6709938]
[1767312321032,2.72557272,127.09,127.04,0.6709938]
[1767312321538,2.05760492,127.08,127.04,0.6709938]
[1767312322615,8.53653881,127.09,127.04,0.6709938]
[1767312322815,2.05760492,127.08,127.04,0.6709938]
[1767312323025,2.05760492,127.07,127.04,0.6709938]
[1767312325052,0.6709938,127.08,127.04,0.6709938]
[1767312325338,2.05760492,127.07,127.04,0.6709938]
[1767312326638,2.05760492,127.05,127.01,0.6577106]
[1767312326940,2.72859872,127.05,127.01,0.6577106]
[1767312327137,2.05760492,127.04,127.01,0.6577106]
[1767312327450,2.05760492,127.03,127.01,0.6577106]
[1767312328242,2.05760492,127.03,126.99,0.6577106]
[1767312328443,8.54307351,127.04,126.99,0.6577106]
[1767312328623,10.59963812,127.05,127.0,2.05760492]
[1767312328820,2.05760492,127.02,126.97,2.05760492]
[1767312329023,2.05760492,127.02,126.98,0.6577106]
[1767312331528,8.54363,127.03,126.98,0.6577106]
[1767312331841,2.05760492,127.02,126.98,0.6577106]
[1767312332852,9.93088765,127.02,126.98,0.6577106]
[1767312333153,2.05760492,127.02,126.98,0.6577106]
[1767312333747,2.05760492,127.0,126.98,0.6577106]
[1767312334056,2.05760492,126.99,126.96,0.6577106]
[1767312335449,2.05760492,126.99,126.95,0.2]
[1767312335450,10.6033976,126.99,126.95,0.2]
[1767312335648,2.05760492,126.98,126.95,0.8577106]
[1767312336159,2.72859872,126.99,126.96,0.6577106]
[1767312336346,2.72859872,126.97,126.95,0.2]
[1767312336649,3.89415406,126.96,126.92,0.6577106]
[1767312336852,3.22316026,126.94,126.92,0.6577106]
[1767312337045,3.22316026,126.95,126.92,0.6577106]
[1767312337746,3.22316026,126.96,126.92,0.6577106]
[1767312338051,3.22316026,126.93,126.91,0.2]
[1767312338230,3.22316026,126.92,126.9,0.2]
[1767312338437,3.89415406,126.91,126.87,0.6577106]
[1767312338631,3.89415406,126.88,126.85,0.2]
[1767312338958,3.22316026,126.86,126.84,1e-08]
[1767312339168,3.22316026,126.86,126.83,0.2]
[1767312339457,3.93123909,126.87,126.83,0.2]
[1767312339754,3.22316026,126.88,126.83,0.2]
[1767312339933,3.22316026,126.88,126.83,3.42316026]
[1767312340137,3.22316026,126.88,126.83,0.2]
[1767312340834,3.22316026,126.87,126.84,0.6577106]
[1767312341031,3.93123909,126.85,126.82,0.2]
[1767312341257,3.22316026,126.83,126.82,0.2]
[1767312341636,3.22316026,126.83,126.79,0.2]
[1767312341959,3.22316026,126.8,126.77,0.2]
[1767312342133,3.22316026,126.79,126.77,0.2]
[1767312342332,14.38,126.82,126.75,1e-08]
[1767312342333,0.70807883,126.77,126.75,1e-08]
[1767312342549,3.22316026,126.76,126.67,14.38]
[1767312342858,3.22316026,126.71,126.67,14.38]
[1767312343034,8.35013837,126.77,126.67,11.1176247]
[1767312343236,3.22316026,126.74,126.7,0.6577106]
[1767312343445,3.22316026,126.73,126.7,0.6577106]
[1767312343661,3.22316026,126.71,126.65,7.89551268]
[1767312343960,3.22316026,126.7,126.66,0.6577106]
[1767312344256,3.22316026,126.72,126.68,0.6577106]
[1767312344461,9.01617651,126.69,126.66,0.6577106]
[1767312344954,9.01617651,126.69,126.66,0.1577106]
[1767312345787,9.01617651,126.68,126.66,0.1577106]
[1767312345948,9.01617651,126.7,126.66,0.1577106]
[1767312347056,0.5,126.8,126.7,0.6577106]
[1767312347250,9.01617651,126.77,126.72,0.6577106]
[1767312347467,9.01617651,126.78,126.74,0.6577106]